bitfinex/quotes_ETHUSD_20251006
["timestamp","ask_amount","ask_price","bid_price","bid_amount"]
[1759721895957,35.67,4532.2,4532.1,28.2699]
[1759721896357,35.67,4532.2,4532.1,28.9469]
[1759721896562,36.9,4532.2,4532.1,28.9469]
[1759721896769,39.10643396,4532.2,4532.1,2.401]
[1759721896958,36.9,4532.2,4532.1,4.892]
[1759721898792,38.13,4532.2,4532.1,4.892]
[1759721899395,38.13,4532.2,4532.1,5.3469]
[1759721899693,38.13,4532.2,4532.1,20.6449]
[1759721900192,39.36,4532.2,4532.1,20.6449]
[1759721900557,39.36,4532.2,4532.1,15.2739]
[1759721900762,39.36,4532.2,4532.1,29.7739]
[1759721900993,39.36,4532.2,4532.1,19.8469]
[1759721901357,39.36,4532.2,4532.1,19.392]
[1759721901594,40.59,4532.2,4532.1,19.392]
[1759721901805,40.59,4532.2,4532.1,4.892]
[1759721902004,40.59,4532.2,4532.1,2.401]
[1759721902168,42.79643396,4532.2,4532.1,4.892]
[1759721902808,40.59,4532.2,4532.1,4.892]
[1759721903102,41.82,4532.2,4532.1,4.892]
[1759721904475,43.05,4532.2,4532.1,4.892]
[1759721905908,44.28,4532.2,4532.1,4.892]
[1759721907115,45.51,4532.2,4532.1,4.892]
[1759721907719,45.51,4532.2,4532.1,5.3469]
[1759721908482,46.74,4532.2,4532.1,5.3469]
[1759721910227,47.97,4532.2,4532.1,5.3469]
[1759721910730,47.97,4532.2,4532.1,20.7553]
[1759721911322,49.2,4532.2,4532.1,20.7553]
[1759721912915,50.43,4532.2,4532.1,20.7553]
[1759721914547,51.66,4532.2,4532.1,20.7553]
[1759721915730,52.89,4532.2,4532.1,20.7553]
[1759721917136,54.12,4532.2,4532.1,20.7553]
[1759721917626,54.12,4532.2,4532.1,5.4573]
[1759721918133,54.12,4532.2,4532.1,20.7553]
[1759721918502,55.35,4532.2,4532.1,20.7553]
[1759721919633,55.35,4532.2,4532.1,5.4573]
[1759721919838,56.58,4532.2,4532.1,5.4573]
[1759721920044,56.58,4532.2,4532.1,20.7553]
[1759721920521,56.58,4532.2,4532.1,21.3889]
[1759721921245,57.81,4532.2,4532.1,21.3889]
[1759721921755,57.81,4532.2,4532.1,35.8889]
[1759721923221,59.04,4532.2,4532.1,35.8889]
[1759721924559,60.27,4532.2,4532.1,35.8889]
[1759721926262,61.5,4532.2,4532.1,35.8889]
[1759721928195,62.73,4532.2,4532.1,32.3094]
[1759721928336,62.73,4532.2,4532.1,34.7984]
[1759721928542,62.73,4532.2,4532.1,35.7641]
[1759721928843,62.73,4532.2,4532.1,36.02074567]
[1759721929274,62.73,4532.2,4532.1,38.22722831]
[1759721929442,62.73,4532.2,4532.1,38.44782831]
[1759721929748,63.96,4532.2,4532.1,41.88203828]
[1759721930148,63.96,4532.2,4532.1,39.10940889]
[1759721930673,63.96,4532.2,4532.1,41.40479261]
[1759721931076,65.19,4532.2,4532.1,42.72679261]
[1759721931575,65.19,4532.2,4532.1,36.42768058]
[1759721932548,66.42,4532.2,4532.1,36.42768058]
[1759721932748,66.42,4532.2,4532.1,38.63416322]
[1759721934182,66.42,4532.2,4532.1,38.89080889]
[1759721934370,67.65,4532.2,4532.1,38.89080889]
[1759721934772,67.65,4532.2,4532.1,40.21280889]
[1759721934984,67.65,4532.2,4532.1,42.98543828]
[1759721935788,68.88,4532.2,4532.1,50.13543828]
[1759721937486,68.88,4532.2,4532.1,49.87879261]
[1759721937691,70.11,4532.2,4532.1,49.87879261]
[1759721938587,70.11,4532.2,4532.1,49.98919261]
[1759721939368,70.11,4532.2,4532.1,47.21656322]
[1759721939698,71.34,4532.2,4532.1,47.21656322]
[1759721940002,71.34,4532.2,4532.1,47.43716322]
[1759721940208,71.34,4532.2,4532.1,50.20979261]
[1759721940904,71.34,4532.2,4532.1,43.05979261]
[1759721941061,72.57,4532.2,4532.1,43.05979261]
[1759721942000,72.57,4532.2,4532.1,27.76179261]
[1759721942166,72.57,4532.2,4532.1,43.05979261]
[1759721942361,73.8,4532.2,4532.1,43.05979261]
[1759721943496,73.8,4532.2,4532.1,40.28716322]
[1759721944096,75.03,4532.2,4532.1,36.75868058]
[1759721944311,75.03,4532.2,4532.1,36.09358058]
[1759721944667,75.03,4532.2,4532.1,38.30006322]
[1759721944891,75.03,4532.2,4532.1,38.73316322]
[1759721945507,76.26,4532.2,4532.1,41.50579261]
[1759721946299,76.26,4532.2,4532.1,38.73316322]
[1759721946616,76.26,4532.2,4532.1,45.88316322]
[1759721946775,77.49,4532.2,4532.1,45.88316322]
[1759721947384,77.49,4532.2,4532.1,48.65579261]
[1759721948201,78.72,4532.2,4532.1,48.65579261]
[1759721949509,78.72,4532.2,4532.1,41.50579261]
[1759721949714,79.95,4532.2,4532.1,41.50579261]
[1759721949916,79.95,4532.2,4532.1,41.72639261]
[1759721950211,79.95,4532.2,4532.1,38.95376322]
[1759721950458,79.95,4532.2,4532.1,41.72400908]
[1759721951007,81.18,4532.2,4532.1,41.72400908]
[1759721951210,81.18,4532.2,4532.1,38.95376322]
[1759721951379,81.18,4532.2,4532.1,41.72422408]
[1759721951774,81.18,4532.2,4532.1,41.07052408]
[1759721952195,81.18,4532.2,4532.1,43.08226975]
[1759721952393,82.41,4532.2,4532.1,43.30286975]
[1759721952616,82.41,4532.2,4532.1,40.53240889]
[1759721953705,83.64,4532.2,4532.1,40.53240889]
[1759721954241,83.64,4532.2,4532.1,25.23440889]
[1759721954392,83.64,4532.2,4532.1,40.53240889]
[1759721954592,82.916,4532.2,4532.1,39.80840889]
[1759721955111,84.146,4532.2,4532.1,39.80840889]
[1759721956413,84.146,4532.2,4532.1,39.80740889]
[1759721956588,85.376,4532.2,4532.1,39.80740889]
[1759721957481,85.376,4532.2,4532.1,46.95740889]
[1759721957812,78.062,4532.2,4532.1,39.68240889]
[1759721958035,79.292,4532.2,4532.1,39.68240889]
[1759721958415,79.292,4532.2,4532.1,39.64040889]
[1759721959319,79.262,4532.2,4532.1,39.61040889]
[1759721959518,80.492,4532.2,4532.1,39.61040889]
[1759721960171,80.47,4532.2,4532.1,39.61040889]
[1759721960313,80.47,4532.2,4532.1,39.58840889]
[1759721960654,80.451,4532.2,4532.1,39.58840889]
[1759721961345,81.681,4532.2,4532.1,39.57340889]
[1759721961512,80.517,4532.2,4532.1,38.40940889]
[1759721962539,81.125,4532.2,4532.1,37.78640889]
[1759721963431,79.93,4532.2,4532.1,36.59140889]
[1759721963608,78.479,4532.2,4532.1,35.14040889]
[1759721963812,0.002,4532.6,4532.5,4.38248792]
[1759721964127,0.4503,4534.1,4532.5,4.38248792]
[1759721964128,2.4433,4534.8,4533.4,1.9556]
[1759721964438,2.4433,4534.8,4534.6,2.4]
[1759721964610,2.4433,4534.8,4534.5,14.5]
[1759721964611,2.68763,4534.8,4534.7,25.407]
[1759721964810,2.68763,4534.8,4534.7,3.73129175]
[1759721965013,2.68763,4534.8,4533.9,0.66138805]
[1759721965209,2.68763,4534.8,4534.0,34.283089]
[1759721965210,2.2053518,4534.5,4534.0,34.283089]
[1759721965423,2.20536568,4534.4,4534.1,17.295089]
[1759721965632,0.22053657,4534.3,4534.2,2.488]
[1759721965837,0.22053657,4534.3,4534.2,19.783089]
[1759721966253,0.66883657,4534.3,4534.2,34.283089]
[1759721967023,0.66883657,4534.3,4534.2,36.683089]
[1759721968357,2.87424865,4534.3,4534.2,36.683089]
[1759721968526,4.10624865,4534.3,4534.2,36.683089]
[1759721968951,1.90083657,4534.3,4534.2,36.683089]
[1759721969859,3.13083657,4534.3,4534.2,36.683089]
[1759721971362,4.36083657,4534.3,4534.2,36.683089]
[1759721972640,6.56624865,4534.3,4534.2,31.38]
[1759721973016,5.59083657,4534.3,4534.2,31.38]
[1759721973762,5.59083657,4534.3,4534.2,31.4904]
[1759721974562,6.82083657,4534.3,4534.2,31.4904]
[1759721976066,8.05083657,4534.3,4534.2,31.4904]
[1759721978035,9.28083657,4534.3,4534.2,31.4904]
[1759721978540,11.48624865,4534.3,4534.2,31.4904]
[1759721979370,12.71624865,4534.3,4534.2,31.4904]
[1759721980037,10.51083657,4534.3,4534.2,31.4904]
[1759721980878,12.26794865,4534.3,4534.2,12.1024]
[1759721981041,12.26794865,4534.3,4534.2,2.488]
[1759721981042,11.74323657,4534.3,4534.2,2.488]
[1759721981243,13.94864865,4534.3,4534.2,2.488]
[1759721982467,15.17864865,4534.3,4534.2,2.488]
[1759721983789,16.40864865,4534.3,4534.2,2.488]
[1759721985276,17.63864865,4534.3,4534.2,2.488]
[1759721986369,14.98253657,4534.3,4534.2,2.488]
[1759721986699,18.86864865,4534.3,4534.2,2.488]
[1759721988276,20.09864865,4534.3,4534.2,2.488]
[1759721989701,21.32864865,4534.3,4534.2,2.488]
[1759721991002,22.66904865,4534.3,4534.2,2.488]
[1759721991501,22.66904865,4534.3,4534.1,0.001]
[1759721991502,2.20546072,4534.2,4534.1,0.001]
[1759721991704,4.82465253,4534.2,4534.1,2.489]
[1759721991891,4.37395253,4534.2,4534.1,2.489]
[1759721992096,4.82465253,4534.2,4534.1,2.489]
[1759721992399,6.05465253,4534.2,4534.1,2.489]
[1759721993805,7.28465253,4534.2,4534.1,2.489]
[1759721995207,8.51465253,4534.2,4534.1,2.489]
[1759721996606,9.74465253,4534.2,4534.1,2.489]
[1759721997987,10.97465253,4534.2,4534.1,2.489]
[1759721999826,12.20465253,4534.2,4534.1,2.489]
[1759722000025,11.75395253,4534.2,4534.1,2.489]
[1759722001010,12.98395253,4534.2,4534.1,2.489]
[1759722002286,13.43465253,4534.2,4534.1,2.489]
[1759722002486,14.66465253,4534.2,4534.1,2.489]
[1759722003596,14.21395253,4534.2,4534.1,2.489]
[1759722003795,15.44395253,4534.2,4534.1,2.489]
[1759722005316,16.67395253,4534.2,4534.1,2.489]
[1759722006628,17.90395253,4534.2,4534.1,2.489]
[1759722008239,19.13395253,4534.2,4534.1,2.489]
[1759722008732,16.92849181,4534.2,4534.1,2.489]
[1759722009036,14.76,4534.2,4534.1,5.3221]
[1759722009221,16.96546072,4534.2,4534.1,35.3221]
[1759722009426,18.19546072,4534.2,4534.1,35.3221]
[1759722009623,18.19546072,4534.2,4534.1,8.1941]
[1759722009797,20.36395253,4534.2,4534.1,2.401]
[1759722009998,20.36395253,4534.2,4534.1,4.889]
[1759722010241,20.81605253,4534.2,4534.1,4.889]
[1759722010413,20.36395253,4534.2,4534.1,4.889]
[1759722010930,21.59395253,4534.2,4534.1,4.889]
[1759722012099,22.82395253,4534.2,4534.1,4.889]
[1759722013505,24.05395253,4534.2,4534.1,4.889]
[1759722014931,25.73605253,4534.2,4534.1,0.001]
[1759722015230,25.73605253,4534.2,4534.1,2.489]
[1759722016102,26.96605253,4534.2,4534.1,2.489]
[1759722017520,28.19605253,4534.2,4534.1,2.489]
[1759722018500,28.19605253,4534.2,4534.1,0.001]
[1759722018906,29.51428701,4534.2,4534.1,0.001]
[1759722019752,29.06218701,4534.2,4534.1,0.001]
[1759722020040,29.51428701,4534.2,4534.1,0.001]
[1759722020446,30.74428701,4534.2,4534.1,0.001]
[1759722021858,31.97428701,4534.2,4534.1,0.001]
[1759722023345,33.20428701,4534.2,4534.1,0.001]
[1759722024649,34.43428701,4534.2,4534.1,0.001]
[1759722025926,35.66428701,4534.2,4534.1,0.001]
[1759722027616,36.89428701,4534.2,4534.1,0.001]
[1759722029050,38.12428701,4534.2,4534.1,0.001]
[1759722031060,39.35428701,4534.2,4534.1,0.001]
[1759722032530,40.58428701,4534.2,4534.1,0.001]
[1759722034043,41.81428701,4534.2,4534.1,0.001]
[1759722036062,43.04428701,4534.2,4534.1,0.001]
[1759722037962,44.27428701,4534.2,4534.1,0.001]
[1759722039047,43.82218701,4534.2,4534.1,0.001]
[1759722039255,44.28558701,4534.2,4534.1,0.001]
[1759722039562,45.51558701,4534.2,4534.1,0.001]
[1759722040228,45.05218701,4534.2,4534.1,0.001]
[1759722040931,46.28218701,4534.2,4534.1,0.001]
[1759722041939,52.18818701,4534.2,4534.1,0.001]
[1759722042280,53.41818701,4534.2,4534.1,0.001]
[1759722042762,52.95478701,4534.2,4534.1,0.001]
[1759722042968,2.32,4533.6,4532.3,0.4478]
[1759722043131,3.81429622,4533.9,4532.1,0.4488]
[1759722043132,2.20594723,4533.2,4532.1,0.4488]
[1759722043332,5.36511967,4533.2,4532.3,0.4478]
[1759722043565,5.82851967,4533.2,4532.3,0.4478]
[1759722043733,6.27731967,4533.2,4532.3,0.4478]
[1759722043926,7.12564149,4533.2,4532.3,0.4478]
[1759722044155,9.61464149,4533.2,4532.3,0.4478]
[1759722044364,9.61464149,4533.2,4532.1,0.43]
[1759722044971,10.84464149,4533.2,4532.1,0.43]
[1759722045469,10.84464149,4533.2,4532.2,0.4478]
[1759722046386,12.07464149,4533.2,4532.1,0.8778]
[1759722047178,11.86906905,4533.2,4532.1,0.8778]
[1759722047678,13.09906905,4533.2,4532.1,0.8778]
[1759722048283,13.09906905,4533.2,4532.3,0.4478]
[1759722049053,14.32906905,4533.2,4532.3,0.4478]
[1759722049886,14.32906905,4533.2,4532.1,0.43]
[1759722050084,14.32906905,4533.2,4532.1,0.001]
[1759722050290,14.32906905,4533.2,4531.3,0.11154684]
[1759722050291,2.20682349,4531.4,4531.3,0.001]
[1759722051193,2.31542643,4531.4,4531.3,0.001]
[1759722051990,3.54542643,4531.4,4531.3,0.001]
[1759722052152,3.54542643,4531.4,4531.3,0.4488]
[1759722052576,4.19689787,4531.4,4531.3,0.4488]
[1759722052968,4.30729787,4531.4,4531.3,0.4488]
[1759722053283,5.53729787,4531.4,4531.3,0.4488]
[1759722053487,5.53729787,4531.4,4531.3,0.001]
[1759722053685,5.53729787,4531.4,4531.3,0.4488]
[1759722053686,2.5704,4531.4,4531.3,0.4488]
[1759722053901,4.77722349,4531.4,4531.3,0.4488]
[1759722054459,6.00722349,4531.4,4531.3,0.4488]
[1759722055887,7.23722349,4531.4,4531.3,0.4488]
[1759722057469,8.46722349,4531.4,4531.3,0.4488]
[1759722058781,9.69722349,4531.4,4531.3,0.4488]
[1759722060189,10.92722349,4531.4,4531.3,0.4488]
[1759722061204,10.92722349,4531.4,4531.3,0.001]
[1759722061517,12.70801915,4531.4,4531.3,0.001]
[1759722061807,13.47061915,4531.4,4531.3,0.001]
[1759722062962,14.70061915,4531.4,4531.3,0.001]
[1759722064600,15.93061915,4531.4,4531.3,0.001]
[1759722065804,15.93061915,4531.4,4531.1,1e-08]
[1759722065805,2.2069209,4531.2,4531.1,1e-08]
[1759722066002,6.41299256,4531.2,4531.1,1e-08]
[1759722066294,6.84819256,4531.2,4531.1,1e-08]
[1759722066663,7.51039962,4531.2,4531.1,1e-08]
[1759722067376,8.30519962,4531.2,4531.1,1e-08]
[1759722067898,5.81519962,4531.2,4531.1,1e-08]
[1759722068099,3.4369209,4531.2,4531.1,0.44210001]
[1759722068401,3.5473209,4531.2,4531.1,1e-08]
[1759722068905,4.7773209,4531.2,4531.1,1e-08]
[1759722070216,6.0073209,4531.2,4531.1,1e-08]
[1759722071016,6.4504209,4531.2,4531.1,1e-08]
[1759722071323,9.05411271,4531.2,4531.1,1e-08]
[1759722071686,12.77411271,4531.2,4531.1,1e-08]
[1759722073192,11.51411271,4531.2,4531.1,1e-08]
[1759722073514,13.56891271,4531.2,4531.1,1e-08]
[1759722074530,12.30891271,4531.2,4531.1,1e-08]
[1759722075796,13.53891271,4531.2,4531.1,1e-08]
[1759722077233,14.76891271,4531.2,4531.1,1e-08]
[1759722078533,15.99891271,4531.2,4531.1,1e-08]
[1759722079607,15.55581271,4531.2,4531.1,0.44210001]
[1759722080101,16.78581271,4531.2,4531.1,0.44210001]
[1759722080547,16.78581271,4531.2,4531.1,1e-08]
[1759722081737,18.01581271,4531.2,4531.1,1e-08]
[1759722083736,19.24581271,4531.2,4531.1,1e-08]
[1759722084906,20.47581271,4531.2,4531.1,1e-08]
[1759722085112,20.47581271,4531.2,4531.1,0.44210001]
[1759722085321,18.3073209,4531.2,4531.1,0.44210001]
[1759722086225,19.5373209,4531.2,4531.1,0.44210001]
[1759722087547,20.7673209,4531.2,4531.1,30.44210001]
[1759722087746,20.7673209,4531.2,4531.1,19.86910001]
[1759722087946,20.7673209,4531.2,4531.1,1e-08]
[1759722088159,20.7693209,4531.2,4531.1,1e-08]
[1759722088354,20.7693209,4531.2,4531.1,0.44210001]
[1759722088932,21.9993209,4531.2,4531.1,0.44210001]
[1759722090244,23.2293209,4531.2,4531.1,0.44210001]
[1759722091734,24.4593209,4531.2,4531.1,0.44210001]
[1759722092957,25.6893209,4531.2,4531.1,0.44210001]
[1759722093871,25.6893209,4531.2,4531.1,1e-08]
[1759722094236,27.68293853,4531.2,4531.1,2.49000001]
[1759722094569,28.13953853,4531.2,4531.1,2.49000001]
[1759722096568,28.91293853,4531.2,4531.1,2.49000001]
[1759722097972,30.14293853,4531.2,4531.1,2.49000001]
[1759722099352,31.37293853,4531.2,4531.1,2.49000001]
[1759722100742,32.60293853,4531.2,4531.1,2.49000001]
[1759722100943,33.05953853,4531.2,4531.1,2.49000001]
[1759722102145,34.28953853,4531.2,4531.1,2.49000001]
[1759722102690,34.28953853,4531.2,4531.1,1e-08]
[1759722102870,34.28953853,4531.2,4531.1,2.49000001]
[1759722103466,35.51953853,4531.2,4531.1,2.49000001]
[1759722103878,35.51953853,4531.2,4531.1,1e-08]
[1759722105088,36.74953853,4531.2,4531.1,1e-08]
[1759722106260,37.97953853,4531.2,4531.1,1e-08]
[1759722106875,37.52293853,4531.2,4531.1,1e-08]
[1759722107864,38.75293853,4531.2,4531.1,1e-08]
[1759722108475,39.20953853,4531.2,4531.1,1e-08]
[1759722109286,39.98293853,4531.2,4531.1,1e-08]
[1759722110676,41.21293853,4531.2,4531.1,1e-08]
[1759722112189,42.44293853,4531.2,4531.1,1e-08]
[1759722113583,43.67293853,4531.2,4531.1,1e-08]
[1759722114092,43.67293853,4531.2,4531.1,0.44540001]
[1759722114093,41.46601763,4531.2,4531.1,0.44540001]
[1759722114388,42.9093209,4531.2,4531.1,0.44540001]
[1759722114995,44.1393209,4531.2,4531.1,0.44540001]
[1759722115385,44.1393209,4531.2,4531.1,1e-08]
[1759722116361,45.3693209,4531.2,4531.1,1e-08]
[1759722117874,46.5993209,4531.2,4531.1,1e-08]
[1759722119287,47.8293209,4531.2,4531.1,1e-08]
[1759722120609,49.0593209,4531.2,4531.1,1e-08]
[1759722121198,49.70380077,4531.2,4531.1,1e-08]
[1759722122097,50.93380077,4531.2,4531.1,1e-08]
[1759722123090,51.40800077,4531.2,4531.1,1e-08]
[1759722123416,52.63800077,4531.2,4531.1,1e-08]
[1759722123610,55.12800077,4531.2,4531.1,1e-08]
[1759722123806,55.76160077,4531.2,4531.1,1e-08]
[1759722124825,54.50160077,4531.2,4531.1,1e-08]
[1759722125013,56.99160077,4531.2,4531.1,1e-08]
[1759722126107,55.73160077,4531.2,4531.1,1e-08]
[1759722126326,58.22160077,4531.2,4531.1,1e-08]
[1759722127392,59.45160077,4531.2,4531.1,1e-08]
[1759722128994,60.68160077,4531.2,4531.1,1e-08]
[1759722129195,63.00160077,4531.2,4531.1,1e-08]
[1759722129398,63.20721449,4531.2,4531.1,1e-08]
[1759722130326,64.43721449,4531.2,4531.1,1e-08]
[1759722131826,65.66721449,4531.2,4531.1,1e-08]
[1759722133030,66.89721449,4531.2,4531.1,1e-08]
[1759722134105,70.17141215,4531.2,4531.1,1e-08]
[1759722134539,71.40141215,4531.2,4531.1,1e-08]
[1759722136541,72.63141215,4531.2,4531.1,1e-08]
[1759722138043,73.86141215,4531.2,4531.1,1e-08]
[1759722139322,73.86141215,4531.2,4530.8,0.001]
[1759722139323,2.20701831,4531.0,4530.8,0.001]
[1759722139524,8.83256425,4530.9,4530.8,0.001]
[1759722139718,9.30676425,4530.9,4530.8,0.001]
[1759722140230,5.91526702,4530.9,4530.8,0.001]
[1759722140850,7.14526702,4530.9,4530.8,0.001]
[1759722141052,9.31375883,4530.9,4530.8,0.001]
[1759722142309,10.54375883,4530.9,4530.8,0.001]
[1759722143629,11.77375883,4530.9,4530.8,0.001]
[1759722145155,13.2091701,4530.9,4530.8,0.001]
[1759722146446,17.62505361,4530.9,4530.8,0.001]
[1759722146774,2.84105678,4530.1,4530.0,1e-08]
[1759722146926,5.61516246,4530.1,4530.0,1e-08]
[1759722147782,6.84516246,4530.1,4530.0,1e-08]
[1759722149265,8.07516246,4530.1,4530.0,1e-08]
[1759722150435,8.07516246,4530.1,4530.0,0.45750001]
[1759722150675,9.30516246,4530.1,4530.0,0.45750001]
[1759722151364,6.81516246,4530.1,4530.0,0.45750001]
[1759722151677,9.30516246,4530.1,4530.0,0.45750001]
[1759722152175,6.81516246,4530.1,4530.0,0.45750001]
[1759722152363,10.53516246,4530.1,4530.0,0.45750001]
[1759722153176,10.53516246,4530.1,4530.0,1e-08]
[1759722153733,11.76516246,4530.1,4530.0,1e-08]
[1759722154175,11.76516246,4530.1,4530.0,0.00100001]
[1759722155284,12.99516246,4530.1,4530.0,0.00100001]
[1759722156743,14.33556246,4530.1,4530.0,0.00100001]
[1759722158490,15.56556246,4530.1,4530.0,0.00100001]
[1759722158672,16.22802396,4530.1,4530.0,0.00100001]
[1759722159663,17.45802396,4530.1,4530.0,0.00100001]
[1759722160979,18.68802396,4530.1,4530.0,0.00100001]
[1759722161277,18.68692022,4530.1,4530.0,0.00100001]
[1759722161477,18.68471274,4530.1,4530.0,0.00100001]
[1759722162348,19.91471274,4530.1,4530.0,0.00100001]
[1759722163387,17.42471274,4530.1,4530.0,0.00100001]
[1759722163587,20.36891274,4530.1,4530.0,0.00100001]
[1759722163762,21.59891274,4530.1,4530.0,0.00100001]
[1759722164084,21.14471274,4530.1,4530.0,0.00100001]
[1759722165171,22.37471274,4530.1,4530.0,0.00100001]
[1759722166994,23.60471274,4530.1,4530.0,0.00100001]
[1759722168493,24.83471274,4530.1,4530.0,0.00100001]
[1759722168696,22.34471274,4530.1,4530.0,0.00100001]
[1759722168872,24.17225124,4530.1,4530.0,0.44410001]
[1759722169391,21.68225124,4530.1,4530.0,0.00100001]
[1759722169697,25.40225124,4530.1,4530.0,0.44410001]
[1759722170071,22.48797488,4530.1,4530.0,0.44410001]
[1759722170272,22.28196246,4530.1,4530.0,0.44410001]
[1759722171095,23.51196246,4530.1,4530.0,0.44410001]
[1759722171667,23.51396246,4530.1,4530.0,0.44410001]
[1759722172369,24.74396246,4530.1,4530.0,0.44410001]
[1759722173821,25.97396246,4530.1,4530.0,0.44410001]
[1759722175167,27.20396246,4530.1,4530.0,0.44410001]
[1759722176466,28.43396246,4530.1,4530.0,0.44410001]
[1759722177802,25.9424,4530.1,4530.0,0.44410001]
[1759722177970,27.1724,4530.1,4530.0,0.44410001]
[1759722179505,28.4024,4530.1,4530.0,0.44410001]
[1759722180615,30.60985678,4530.1,4530.0,0.00100001]
[1759722180788,31.83985678,4530.1,4530.0,0.00100001]
[1759722180982,34.00834859,4530.1,4530.0,0.00100001]
[1759722181179,34.00834859,4530.1,4530.0,0.44410001]
[1759722181386,34.00834859,4530.1,4530.0,0.00100001]
[1759722182235,35.23834859,4530.1,4530.0,0.00100001]
[1759722183028,33.03089181,4530.1,4530.0,0.46370001]
[1759722183203,30.8624,4530.1,4530.0,0.46370001]
[1759722183588,32.0924,4530.1,4530.0,0.46370001]
[1759722184040,34.29985678,4530.1,4530.0,0.46370001]
[1759722184525,34.29985678,4530.1,4530.0,0.00100001]
[1759722184889,35.52985678,4530.1,4530.0,0.00100001]
[1759722185091,37.69834859,4530.1,4530.0,0.00100001]
[1759722186217,38.92834859,4530.1,4530.0,0.00100001]
[1759722186418,36.72089181,4530.1,4530.0,0.00100001]
[1759722186829,36.72089181,4530.1,4530.0,0.46370001]
[1759722187126,38.92834859,4530.1,4530.0,0.46370001]
[1759722187524,40.15834859,4530.1,4530.0,0.00100001]
[1759722188924,41.38834859,4530.1,4530.0,0.00100001]
[1759722189091,39.21985678,4530.1,4530.0,0.00100001]
[1759722190114,42.80285678,4530.1,4530.0,0.00100001]
[1759722190318,44.03285678,4530.1,4530.0,0.00100001]
[1759722191638,45.26285678,4530.1,4530.0,0.00100001]
[1759722193007,46.49285678,4530.1,4530.0,0.00100001]
[1759722193327,48.66134859,4530.1,4530.0,0.00100001]
[1759722194757,49.89134859,4530.1,4530.0,0.00100001]
[1759722196457,51.12134859,4530.1,4530.0,0.00100001]
[1759722197558,50.66194859,4530.1,4530.0,0.00100001]
[1759722197937,51.89194859,4530.1,4530.0,0.00100001]
[1759722199658,47.19449181,4530.1,4530.0,0.00100001]
[1759722199953,47.19449181,4530.1,4530.0,0.46370001]
[1759722199954,53.12194859,4530.1,4530.0,0.46370001]
[1759722200459,53.12194859,4530.1,4530.0,0.00100001]
[1759722201260,54.35194859,4530.1,4530.0,0.00100001]
[1759722202561,55.58194859,4530.1,4530.0,0.00100001]
[1759722203861,56.81194859,4530.1,4530.0,0.00100001]
[1759722205362,58.04194859,4530.1,4530.0,0.00100001]
[1759722206663,59.27194859,4530.1,4530.0,0.00100001]
[1759722207963,60.50194859,4530.1,4530.0,0.00100001]
[1759722208838,55.17089181,4530.1,4530.0,0.46370001]
[1759722209034,55.20985678,4530.1,4530.0,0.46370001]
[1759722209235,56.43985678,4530.1,4530.0,0.00100001]
[1759722210841,57.66985678,4530.1,4530.0,0.00100001]
[1759722211049,60.61925678,4530.1,4530.0,0.00100001]
[1759722211352,61.25285678,4530.1,4530.0,0.00100001]
[1759722211556,63.42134859,4530.1,4530.0,0.00100001]
[1759722212239,64.65134859,4530.1,4530.0,0.00100001]
[1759722213739,65.88134859,4530.1,4530.0,0.00100001]
[1759722215068,67.11134859,4530.1,4530.0,0.00100001]
[1759722216545,68.34134859,4530.1,4530.0,0.00100001]
[1759722216739,65.67449181,4530.1,4530.0,0.00100001]
[1759722217065,67.88194859,4530.1,4530.0,0.00100001]
[1759722217669,67.88194859,4530.1,4530.0,0.001]
[1759722217843,65.39194859,4530.1,4530.0,0.001]
[1759722218175,69.11194859,4530.1,4530.0,0.001]
[1759722218840,69.77435597,4530.1,4530.0,0.001]
[1759722219693,71.47585597,4530.1,4530.0,0.001]
[1759722221174,72.69785597,4530.1,4530.0,0.001]
[1759722222696,73.92785597,4530.1,4530.0,0.001]
[1759722224498,75.15785597,4530.1,4530.0,0.001]
[1759722225670,76.38785597,4530.1,4530.0,0.001]
[1759722226893,75.91635597,4530.1,4530.0,0.4516]
[1759722227092,77.14635597,4530.1,4530.0,0.4516]
[1759722227269,73.36034859,4530.1,4530.0,0.4516]
[1759722227475,75.85034859,4530.1,4530.0,0.4516]
[1759722227696,76.30194859,4530.1,4530.0,0.4516]
[1759722228884,77.53194859,4530.1,4530.0,0.4516]
[1759722230302,76.59345678,4530.1,4530.0,0.4516]
[1759722231811,72.6744,4530.1,4530.0,0.4516]
[1759722233057,73.9044,4530.1,4530.0,0.4516]
[1759722233744,76.11185678,4530.1,4530.0,0.001]
[1759722233910,73.9044,4530.1,4530.0,0.001]
[1759722234311,75.1344,4530.1,4530.0,0.001]
[1759722234710,77.34185678,4530.1,4530.0,0.001]
[1759722234900,77.81335678,4530.1,4530.0,0.001]
[1759722235101,79.98184859,4530.1,4530.0,0.001]
[1759722235538,79.51034859,4530.1,4530.0,0.001]
[1759722235734,80.74034859,4530.1,4530.0,0.001]
[1759722235955,78.53289181,4530.1,4530.0,0.001]
[1759722236155,79.00439181,4530.1,4530.0,0.001]
[1759722236336,81.02289181,4530.1,4530.0,0.001]
[1759722237658,82.25289181,4530.1,4530.0,0.001]
[1759722238261,79.76289181,4530.1,4530.0,0.001]
[1759722238476,81.97034859,4530.1,4530.0,0.001]
[1759722238760,79.76289181,4530.1,4530.0,0.001]
[1759722239068,81.46439181,4530.1,4530.0,0.001]
[1759722239862,83.95439181,4530.1,4530.0,0.001]
[1759722240368,84.71289181,4530.1,4530.0,0.001]
[1759722241265,85.18439181,4530.1,4530.0,0.001]
[1759722241645,86.41439181,4530.1,4530.0,0.001]
[1759722242172,85.94289181,4530.1,4530.0,0.001]
[1759722243492,87.17289181,4530.1,4530.0,0.001]
[1759722243698,90.37714859,4530.1,4530.0,0.001]
[1759722243992,91.03959547,4530.1,4530.0,0.001]
[1759722244597,88.75535228,4530.1,4530.0,0.001]
[1759722244903,92.47535228,4530.1,4530.0,0.001]
[1759722246169,89.98535228,4530.1,4530.0,0.001]